[Event "Titled Tuesday Blitz February 15 Late 2022"]
[White "Chigaev, Maksim"]
[Black "Mikhailovsky, Vladimir"]
[WhiteFideId "4108116"]
[BlackFideId "34105414"]
[WhiteElo "2502"]
[BlackElo "2371"]
[Result "1-0"]
[Round "04"]
[TimeControl "180+1"]
[Date "2022.02.15"]
[WhiteClock "0:00:04"]
[BlackClock "0:00:09"]

1. d4 {[%clk 0:03:00]}  d5 {[%clk 0:03:00]} 2. Nf3 {[%clk 0:02:59]}  Nf6 {[%clk 0:03:00]} 3. g3 {[%clk 0:02:59]}  Bf5 {[%clk 0:02:58]} 4. Bg2 {[%clk 0:02:59]}  e6 {[%clk 0:02:58]} 5. O-O {[%clk 0:02:58]}  h6 {[%clk 0:02:58]} 6. c4 {[%clk 0:02:58]}  c6 {[%clk 0:02:58]} 7. Nc3 {[%clk 0:02:53]}  Be7 {[%clk 0:02:55]} 8. Nd2 {[%clk 0:02:53]}  Bh7 {[%clk 0:02:52]} 9. e4 {[%clk 0:02:52]}  O-O {[%clk 0:02:41]} 10. e5 {[%clk 0:02:33]}  Ne8 {[%clk 0:02:40]} 11. Re1 {[%clk 0:02:33]}  dxc4 {[%clk 0:02:37]} 12. Nxc4 {[%clk 0:02:33]}  Nd7 {[%clk 0:02:38]} 13. h4 {[%clk 0:02:22]}  Nb6 {[%clk 0:02:37]} 14. b3 {[%clk 0:02:10]}  Nc7 {[%clk 0:02:29]} 15. Bb2 {[%clk 0:02:03]}  Qd7 {[%clk 0:01:38]} 16. Ne4 {[%clk 0:01:56]}  Nxc4 {[%clk 0:01:35]} 17. bxc4 {[%clk 0:01:56]}  Rfd8 {[%clk 0:01:35]} 18. Qg4 {[%clk 0:01:42]}  Bf5 {[%clk 0:01:29]} 19. Qf4 {[%clk 0:01:42]}  b5 {[%clk 0:01:16]} 20. c5 {[%clk 0:00:59]}  Nd5 {[%clk 0:01:14]} 21. Qd2 {[%clk 0:00:55]}  Bxe4 {[%clk 0:01:02]} 22. Bxe4 {[%clk 0:00:56]}  f5 {[%clk 0:00:49]} 23. exf6 {[%clk 0:00:51]}  Nxf6 {[%clk 0:00:49]} 24. Bf3 {[%clk 0:00:38]}  Bxc5 {[%clk 0:00:46]} 25. Qc2 {[%clk 0:00:37]}  Bxd4 {[%clk 0:00:37]} 26. Bxd4 {[%clk 0:00:33]}  Qxd4 {[%clk 0:00:37]} 27. Qxc6 {[%clk 0:00:34]}  Rac8 {[%clk 0:00:28]} 28. Qxe6+ {[%clk 0:00:25]}  Kh8 {[%clk 0:00:29]} 29. Rad1 {[%clk 0:00:23]}  Qc3 {[%clk 0:00:28]} 30. Kg2 {[%clk 0:00:13]}  Re8 {[%clk 0:00:21]} 31. Qb3 {[%clk 0:00:05]}  Qc5 {[%clk 0:00:10]} 32. Rxe8+ {[%clk 0:00:05]}  Rxe8 {[%clk 0:00:11]} 33. Rd2 {[%clk 0:00:04]}  Rf8 {[%clk 0:00:11]} 34. Qe6 {[%clk 0:00:04]}  a5 {[%clk 0:00:11]} 35. Re2 {[%clk 0:00:04]}  a4 {[%clk 0:00:10]} 36. Qe7 {[%clk 0:00:03]}  Qc8 {[%clk 0:00:09]} 37. Qb4 {[%clk 0:00:04]}  Qf5 {[%clk 0:00:09]} 38. Qxf8+ {[%clk 0:00:03]}  Kh7 {[%clk 0:00:09]} 39. Qb4 {[%clk 0:00:04]} 1-0


[Site "https://www.chess.com"]

[Event "Titled Tuesday Blitz February 15 Late 2022"]
[White "Daianu, Cristian-Clement"]
[Black "De Arruda, Leandro Formes"]
[WhiteFideId "1208926"]
[BlackFideId "22722009"]
[WhiteElo "2159"]
[BlackElo "1780"]
[Result "1-0"]
[Round "04"]
[TimeControl "180+1"]
[Date "2022.02.16"]
[WhiteClock "0:00:22"]
[BlackClock "0:00:31"]

1. d4 {[%clk 0:03:00]}  d5 {[%clk 0:02:57]} 2. Bf4 {[%clk 0:02:59]}  Nf6 {[%clk 0:02:57]} 3. e3 {[%clk 0:03:00]}  e6 {[%clk 0:02:58]} 4. Nf3 {[%clk 0:03:00]}  Bd6 {[%clk 0:02:58]} 5. Bd3 {[%clk 0:02:55]}  Bxf4 {[%clk 0:02:58]} 6. exf4 {[%clk 0:02:55]}  Qd6 {[%clk 0:02:59]} 7. Qd2 {[%clk 0:02:49]}  Bd7 {[%clk 0:02:58]} 8. Ne5 {[%clk 0:02:46]}  c5 {[%clk 0:02:54]} 9. c3 {[%clk 0:02:46]}  cxd4 {[%clk 0:02:53]} 10. cxd4 {[%clk 0:02:47]}  Nc6 {[%clk 0:02:52]} 11. Bc2 {[%clk 0:02:32]}  Nb4 {[%clk 0:02:49]} 12. Nc3 {[%clk 0:02:30]}  Nxc2+ {[%clk 0:02:48]} 13. Qxc2 {[%clk 0:02:30]}  b5 {[%clk 0:02:45]} 14. a3 {[%clk 0:02:29]}  Rc8 {[%clk 0:02:44]} 15. O-O {[%clk 0:02:29]}  a5 {[%clk 0:02:44]} 16. Qd3 {[%clk 0:02:11]}  b4 {[%clk 0:02:36]} 17. axb4 {[%clk 0:02:11]}  axb4 {[%clk 0:02:37]} 18. Nd1 {[%clk 0:02:11]}  O-O {[%clk 0:02:33]} 19. Ne3 {[%clk 0:02:10]}  Be8 {[%clk 0:02:19]} 20. f5 {[%clk 0:02:05]}  Qb6 {[%clk 0:02:18]} 21. fxe6 {[%clk 0:02:03]}  fxe6 {[%clk 0:02:18]} 22. Ra6 {[%clk 0:01:59]}  Qb7 {[%clk 0:02:14]} 23. Rxe6 {[%clk 0:01:50]}  Bb5 {[%clk 0:02:12]} 24. Qb3 {[%clk 0:01:24]}  Bxf1 {[%clk 0:02:10]} 25. Nxf1 {[%clk 0:01:25]}  Rc1 {[%clk 0:02:04]} 26. Nd3 {[%clk 0:01:11]}  Ra1 {[%clk 0:01:47]} 27. f3 {[%clk 0:01:00]}  h6 {[%clk 0:01:38]} 28. g3 {[%clk 0:00:58]}  Ne4 {[%clk 0:01:32]} 29. Kg2 {[%clk 0:00:51]}  Rxf1 {[%clk 0:01:25]} 30. Rxe4 {[%clk 0:00:50]}  R8xf3 {[%clk 0:01:09]} 31. Re8+ {[%clk 0:00:45]}  Kh7 {[%clk 0:01:02]} 32. Qc2 {[%clk 0:00:45]}  g6 {[%clk 0:00:47]} 33. Qe2 {[%clk 0:00:23]}  Rf7 {[%clk 0:00:41]} 34. Qe5 {[%clk 0:00:23]}  R1f2+ {[%clk 0:00:34]} 35. Nxf2 {[%clk 0:00:23]}  Rg7 {[%clk 0:00:31]} 36. Ng4 {[%clk 0:00:22]} 1-0


[Site "https://www.chess.com"]

[Event "Titled Tuesday Blitz February 15 Late 2022"]
[White "Debray, Christopher"]
[Black "Toncheva, Nadya"]
[WhiteFideId "630810"]
[BlackFideId "2924056"]
[WhiteElo "2369"]
[BlackElo "1920"]
[Result "1-0"]
[Round "04"]
[TimeControl "180+1"]
[Date "2022.02.16"]
[WhiteClock "0:00:39"]
[BlackClock "0:00:05"]

1. d4 {[%clk 0:03:00]}  Nf6 {[%clk 0:02:59]} 2. Bf4 {[%clk 0:03:01]}  e6 {[%clk 0:02:59]} 3. e3 {[%clk 0:03:01]}  c5 {[%clk 0:03:00]} 4. c3 {[%clk 0:03:01]}  d5 {[%clk 0:03:00]} 5. Nd2 {[%clk 0:03:02]}  Bd6 {[%clk 0:03:00]} 6. Bg3 {[%clk 0:03:01]}  Qc7 {[%clk 0:03:00]} 7. Ngf3 {[%clk 0:03:01]}  Nbd7 {[%clk 0:03:00]} 8. Bd3 {[%clk 0:03:00]}  O-O {[%clk 0:03:00]} 9. O-O {[%clk 0:02:51]}  Bxg3 {[%clk 0:02:59]} 10. hxg3 {[%clk 0:02:50]}  e5 {[%clk 0:03:00]} 11. dxe5 {[%clk 0:02:50]}  Nxe5 {[%clk 0:03:01]} 12. Nxe5 {[%clk 0:02:51]}  Qxe5 {[%clk 0:03:02]} 13. Nf3 {[%clk 0:02:51]}  Qe6 {[%clk 0:03:02]} 14. Bc2 {[%clk 0:02:49]}  b6 {[%clk 0:02:59]} 15. Qe2 {[%clk 0:02:49]}  Bb7 {[%clk 0:02:53]} 16. Rad1 {[%clk 0:02:49]}  Rad8 {[%clk 0:02:53]} 17. a4 {[%clk 0:02:42]}  Rfe8 {[%clk 0:02:48]} 18. a5 {[%clk 0:02:41]}  bxa5 {[%clk 0:02:34]} 19. Ra1 {[%clk 0:02:25]}  Qb6 {[%clk 0:02:31]} 20. Rfd1 {[%clk 0:02:19]}  d4 {[%clk 0:02:05]} 21. cxd4 {[%clk 0:02:10]}  cxd4 {[%clk 0:02:05]} 22. Ba4 {[%clk 0:02:01]}  Re7 {[%clk 0:01:41]} 23. Qd3 {[%clk 0:01:59]}  Ba6 {[%clk 0:01:34]} 24. Qd2 {[%clk 0:01:55]}  Ne4 {[%clk 0:01:27]} 25. Qc1 {[%clk 0:01:53]}  dxe3 {[%clk 0:01:11]} 26. Rxd8+ {[%clk 0:01:53]}  Qxd8 {[%clk 0:01:11]} 27. Qxe3 {[%clk 0:01:54]}  h6 {[%clk 0:01:05]} 28. Re1 {[%clk 0:01:46]}  Bb7 {[%clk 0:00:33]} 29. Qxa7 {[%clk 0:01:43]}  Nd6 {[%clk 0:00:26]} 30. Rxe7 {[%clk 0:01:34]}  Qxe7 {[%clk 0:00:27]} 31. Qxa5 {[%clk 0:01:33]}  Nc4 {[%clk 0:00:25]} 32. Qc3 {[%clk 0:01:29]}  Bd5 {[%clk 0:00:21]} 33. Bc2 {[%clk 0:01:23]}  g6 {[%clk 0:00:20]} 34. b4 {[%clk 0:01:15]}  Nd6 {[%clk 0:00:19]} 35. Qd4 {[%clk 0:01:09]}  Bxf3 {[%clk 0:00:16]} 36. gxf3 {[%clk 0:01:07]}  Qe1+ {[%clk 0:00:16]} 37. Kg2 {[%clk 0:01:05]}  Nb5 {[%clk 0:00:16]} 38. Qc5 {[%clk 0:00:58]}  Nc3 {[%clk 0:00:11]} 39. Bd3 {[%clk 0:00:52]}  Qd2 {[%clk 0:00:06]} 40. Qe3 {[%clk 0:00:46]}  Qb2 {[%clk 0:00:05]} 41. b5 {[%clk 0:00:39]}  Nxb5 {[%clk 0:00:05]} 42. Qe8+ {[%clk 0:00:39]} 1-0


[Site "https://www.chess.com"]

[Event "Titled Tuesday Blitz February 15 Late 2022"]
[White "Demchenko, Anton"]
[Black "Fishbein, Alexander"]
[WhiteFideId "4160258"]
[BlackFideId "2000377"]
[WhiteElo "2539"]
[BlackElo "2442"]
[Result "1-0"]
[Round "04"]
[TimeControl "180+1"]
[Date "2022.02.15"]
[WhiteClock "0:00:04"]
[BlackClock "0:00:01"]

1. e4 {[%clk 0:03:00]}  c5 {[%clk 0:02:59]} 2. Nf3 {[%clk 0:03:01]}  d6 {[%clk 0:02:59]} 3. d4 {[%clk 0:03:01]}  cxd4 {[%clk 0:02:59]} 4. Qxd4 {[%clk 0:03:01]}  a6 {[%clk 0:02:57]} 5. Be2 {[%clk 0:03:00]}  Nc6 {[%clk 0:02:57]} 6. Qe3 {[%clk 0:03:00]}  g6 {[%clk 0:02:57]} 7. h3 {[%clk 0:02:59]}  Bg7 {[%clk 0:02:57]} 8. O-O {[%clk 0:02:59]}  Nf6 {[%clk 0:02:57]} 9. Rd1 {[%clk 0:02:57]}  Nd7 {[%clk 0:02:50]} 10. c4 {[%clk 0:02:56]}  O-O {[%clk 0:02:49]} 11. Nc3 {[%clk 0:02:57]}  Qb6 {[%clk 0:02:46]} 12. Qxb6 {[%clk 0:02:38]}  Nxb6 {[%clk 0:02:47]} 13. Bd2 {[%clk 0:02:39]}  Be6 {[%clk 0:02:42]} 14. b3 {[%clk 0:02:39]}  Nd7 {[%clk 0:02:37]} 15. Rac1 {[%clk 0:02:37]}  Nc5 {[%clk 0:02:37]} 16. Ng5 {[%clk 0:02:19]}  Nd4 {[%clk 0:02:30]} 17. Bf1 {[%clk 0:02:03]}  h6 {[%clk 0:02:27]} 18. Nxe6 {[%clk 0:01:59]}  fxe6 {[%clk 0:02:28]} 19. Be3 {[%clk 0:01:55]}  e5 {[%clk 0:02:24]} 20. Nd5 {[%clk 0:01:46]}  Rf7 {[%clk 0:02:21]} 21. f3 {[%clk 0:01:43]}  g5 {[%clk 0:02:15]} 22. b4 {[%clk 0:01:42]}  Nce6 {[%clk 0:02:15]} 23. c5 {[%clk 0:01:42]}  dxc5 {[%clk 0:02:11]} 24. Nb6 {[%clk 0:01:37]}  Rd8 {[%clk 0:02:04]} 25. bxc5 {[%clk 0:01:37]}  Nf4 {[%clk 0:01:58]} 26. Bxf4 {[%clk 0:00:54]}  exf4 {[%clk 0:01:46]} 27. Bc4 {[%clk 0:00:54]}  e6 {[%clk 0:01:45]} 28. Kf1 {[%clk 0:00:23]}  Kh7 {[%clk 0:01:43]} 29. e5 {[%clk 0:00:13]}  Bxe5 {[%clk 0:01:34]} 30. Bd3+ {[%clk 0:00:13]}  Kg7 {[%clk 0:01:32]} 31. Be4 {[%clk 0:00:14]}  Rc7 {[%clk 0:01:23]} 32. Nc4 {[%clk 0:00:14]}  Bf6 {[%clk 0:01:00]} 33. Na5 {[%clk 0:00:07]}  Rdd7 {[%clk 0:00:55]} 34. Rc4 {[%clk 0:00:05]}  e5 {[%clk 0:00:40]} 35. Rb1 {[%clk 0:00:02]}  Nb5 {[%clk 0:00:33]} 36. Nxb7 {[%clk 0:00:01]}  Na3 {[%clk 0:00:32]} 37. Rcc1 {[%clk 0:00:02]}  Nxb1 {[%clk 0:00:32]} 38. Rxb1 {[%clk 0:00:01]}  Be7 {[%clk 0:00:30]} 39. c6 {[%clk 0:00:02]}  Rd2 {[%clk 0:00:29]} 40. Na5 {[%clk 0:00:02]}  Bc5 {[%clk 0:00:27]} 41. Rb7 {[%clk 0:00:03]}  Rxb7 {[%clk 0:00:21]} 42. cxb7 {[%clk 0:00:04]}  Rb2 {[%clk 0:00:17]} 43. Bd5 {[%clk 0:00:03]}  Bd6 {[%clk 0:00:16]} 44. Nc4 {[%clk 0:00:03]}  Rb1+ {[%clk 0:00:16]} 45. Ke2 {[%clk 0:00:03]}  Bb8 {[%clk 0:00:16]} 46. Kd3 {[%clk 0:00:04]}  Rg1 {[%clk 0:00:16]} 47. Ke4 {[%clk 0:00:04]}  Rxg2 {[%clk 0:00:16]} 48. Na5 {[%clk 0:00:04]}  Re2+ {[%clk 0:00:14]} 49. Kf5 {[%clk 0:00:04]}  Rd2 {[%clk 0:00:09]} 50. Ke6 {[%clk 0:00:04]}  h5 {[%clk 0:00:08]} 51. Nc6 {[%clk 0:00:04]}  Bc7 {[%clk 0:00:07]} 52. Ne7 {[%clk 0:00:04]}  g4 {[%clk 0:00:06]} 53. hxg4 {[%clk 0:00:03]}  h4 {[%clk 0:00:06]} 54. Nf5+ {[%clk 0:00:02]}  Kg6 {[%clk 0:00:05]} 55. Nxh4+ {[%clk 0:00:03]}  Kg5 {[%clk 0:00:06]} 56. Nf5 {[%clk 0:00:04]}  a5 {[%clk 0:00:04]} 57. Be4 {[%clk 0:00:04]}  Bb8 {[%clk 0:00:03]} 58. Ne7 {[%clk 0:00:04]}  Rb2 {[%clk 0:00:04]} 59. a4 {[%clk 0:00:03]}  Rb6+ {[%clk 0:00:04]} 60. Kf7 {[%clk 0:00:02]}  Rb4 {[%clk 0:00:04]} 61. Nc8 {[%clk 0:00:02]}  Rxa4 {[%clk 0:00:04]} 62. Ne7 {[%clk 0:00:02]}  Ra1 {[%clk 0:00:03]} 63. Nc6 {[%clk 0:00:02]}  Bc7 {[%clk 0:00:03]} 64. Ke7 {[%clk 0:00:01]}  a4 {[%clk 0:00:03]} 65. Kd7 {[%clk 0:00:02]}  Bb8 {[%clk 0:00:02]} 66. Nxb8 {[%clk 0:00:01]}  Rd1+ {[%clk 0:00:03]} 67. Kc7 {[%clk 0:00:01]}  a3 {[%clk 0:00:04]} 68. Nc6 {[%clk 0:00:01]}  a2 {[%clk 0:00:03]} 69. b8=Q {[%clk 0:00:01]}  a1=Q {[%clk 0:00:04]} 70. Qg8+ {[%clk 0:00:02]}  Kh4 {[%clk 0:00:05]} 71. Qh8+ {[%clk 0:00:02]}  Kg3 {[%clk 0:00:06]} 72. Qxe5 {[%clk 0:00:03]}  Qa2 {[%clk 0:00:04]} 73. Qb5 {[%clk 0:00:02]}  Qf7+ {[%clk 0:00:04]} 74. Kb6 {[%clk 0:00:03]}  Rd6 {[%clk 0:00:04]} 75. Qc5 {[%clk 0:00:03]}  Qf6 {[%clk 0:00:04]} 76. Qg1+ {[%clk 0:00:03]}  Kh4 {[%clk 0:00:03]} 77. Qh2+ {[%clk 0:00:03]}  Kg5 {[%clk 0:00:01]} 78. Qh5# {[%clk 0:00:04]} 1-0


[Site "https://www.chess.com"]

[Event "Titled Tuesday Blitz February 15 Late 2022"]
[White "Desideri, Ricardo Maruchi"]
[Black "Curtis, John"]
[WhiteFideId "2110440"]
[BlackFideId "3200256"]
[WhiteElo "1945"]
[BlackElo "2203"]
[Result "0-1"]
[Round "04"]
[TimeControl "180+1"]
[Date "2022.02.16"]
[WhiteClock "0:00:02"]
[BlackClock "0:01:11"]

1. e4 {[%clk 0:03:00]}  e5 {[%clk 0:02:58]} 2. Nf3 {[%clk 0:03:00]}  Nc6 {[%clk 0:02:57]} 3. d4 {[%clk 0:03:00]}  exd4 {[%clk 0:02:57]} 4. Nxd4 {[%clk 0:03:01]}  Qh4 {[%clk 0:02:55]} 5. Nb5 {[%clk 0:02:53]}  Qxe4+ {[%clk 0:02:47]} 6. Be3 {[%clk 0:02:46]}  Bc5 {[%clk 0:02:39]} 7. Nxc7+ {[%clk 0:02:43]}  Kd8 {[%clk 0:02:39]} 8. Nxa8 {[%clk 0:02:39]}  Bxe3 {[%clk 0:02:39]} 9. fxe3 {[%clk 0:02:39]}  Qxe3+ {[%clk 0:02:39]} 10. Qe2 {[%clk 0:02:39]}  Qc1+ {[%clk 0:02:39]} 11. Qd1 {[%clk 0:02:32]}  Qxb2 {[%clk 0:02:39]} 12. Nd2 {[%clk 0:02:30]}  Nf6 {[%clk 0:02:39]} 13. Be2 {[%clk 0:02:28]}  Qd4 {[%clk 0:02:35]} 14. Nf3 {[%clk 0:02:23]}  Qc3+ {[%clk 0:02:35]} 15. Nd2 {[%clk 0:02:17]}  Re8 {[%clk 0:02:27]} 16. O-O {[%clk 0:02:11]}  Nd4 {[%clk 0:02:13]} 17. Bd3 {[%clk 0:02:06]}  Qc5 {[%clk 0:02:12]} 18. Kh1 {[%clk 0:02:00]}  b6 {[%clk 0:02:12]} 19. Nb3 {[%clk 0:01:47]}  Qc3 {[%clk 0:02:05]} 20. Nxd4 {[%clk 0:01:42]}  Qxd4 {[%clk 0:02:05]} 21. Qf3 {[%clk 0:01:37]}  Re3 {[%clk 0:01:56]} 22. Qf4 {[%clk 0:01:10]}  Qxf4 {[%clk 0:01:56]} 23. Rxf4 {[%clk 0:01:10]}  Bb7 {[%clk 0:01:56]} 24. Nxb6 {[%clk 0:01:08]}  axb6 {[%clk 0:01:56]} 25. h3 {[%clk 0:01:01]}  Kc7 {[%clk 0:01:47]} 26. Rb1 {[%clk 0:00:59]}  Rxh3+ {[%clk 0:01:44]} 27. Kg1 {[%clk 0:00:57]}  Rg3 {[%clk 0:01:43]} 28. Rf2 {[%clk 0:00:51]}  Bd5 {[%clk 0:01:37]} 29. Kh2 {[%clk 0:00:49]}  Rg5 {[%clk 0:01:34]} 30. Rf4 {[%clk 0:00:24]}  Bxa2 {[%clk 0:01:28]} 31. Ra1 {[%clk 0:00:14]}  Bd5 {[%clk 0:01:27]} 32. Ra7+ {[%clk 0:00:13]}  Kb8 {[%clk 0:01:28]} 33. Rfa4 {[%clk 0:00:10]}  Rxg2+ {[%clk 0:01:27]} 34. Kh3 {[%clk 0:00:09]}  Rg1 {[%clk 0:01:19]} 35. c4 {[%clk 0:00:09]}  Bc6 {[%clk 0:01:19]} 36. Ra3 {[%clk 0:00:07]}  Rd1 {[%clk 0:01:18]} 37. Bf5 {[%clk 0:00:05]}  g6 {[%clk 0:01:16]} 38. Bg4 {[%clk 0:00:04]}  Nxg4 {[%clk 0:01:13]} 39. Kxg4 {[%clk 0:00:03]}  h6 {[%clk 0:01:14]} 40. Kf4 {[%clk 0:00:03]}  f6 {[%clk 0:01:13]} 41. Ke3 {[%clk 0:00:02]}  h5 {[%clk 0:01:11]} 0-1


[Site "https://www.chess.com"]

[Event "Titled Tuesday Blitz February 15 Late 2022"]
[White "Djordjevic, Vuk"]
[Black "Vusatiuk, Vladimir"]
[WhiteFideId "902098"]
[BlackFideId "14118610"]
[WhiteElo "2722"]
[BlackElo "2501"]
[Result "0-1"]
[Round "04"]
[TimeControl "180+1"]
[Date "2022.02.16"]
[WhiteClock "0:00:50"]
[BlackClock "0:00:16"]

1. d4 {[%clk 0:03:00]}  Nf6 {[%clk 0:02:54]} 2. Bg5 {[%clk 0:03:01]}  e6 {[%clk 0:02:53]} 3. e4 {[%clk 0:03:00]}  h6 {[%clk 0:02:53]} 4. Bxf6 {[%clk 0:03:00]}  Qxf6 {[%clk 0:02:54]} 5. c3 {[%clk 0:03:01]}  d6 {[%clk 0:02:53]} 6. Bd3 {[%clk 0:03:01]}  g6 {[%clk 0:02:53]} 7. Ne2 {[%clk 0:03:02]}  Bg7 {[%clk 0:02:53]} 8. O-O {[%clk 0:03:03]}  e5 {[%clk 0:02:52]} 9. f4 {[%clk 0:03:03]}  Qe7 {[%clk 0:02:50]} 10. Nd2 {[%clk 0:03:03]}  O-O {[%clk 0:02:35]} 11. Nf3 {[%clk 0:03:03]}  Nd7 {[%clk 0:02:19]} 12. Qd2 {[%clk 0:03:03]}  b6 {[%clk 0:02:15]} 13. Rae1 {[%clk 0:03:01]}  Bb7 {[%clk 0:02:14]} 14. f5 {[%clk 0:02:56]}  gxf5 {[%clk 0:01:53]} 15. exf5 {[%clk 0:02:52]}  e4 {[%clk 0:01:54]} 16. Ng3 {[%clk 0:02:52]}  d5 {[%clk 0:01:54]} 17. Bb5 {[%clk 0:02:34]}  c6 {[%clk 0:01:45]} 18. Bd3 {[%clk 0:02:27]}  Qd8 {[%clk 0:01:28]} 19. Bxe4 {[%clk 0:02:27]}  dxe4 {[%clk 0:01:29]} 20. Nxe4 {[%clk 0:02:27]}  Nf6 {[%clk 0:01:26]} 21. Ne5 {[%clk 0:02:18]}  Re8 {[%clk 0:01:17]} 22. Rf3 {[%clk 0:02:09]}  Nxe4 {[%clk 0:01:14]} 23. Rxe4 {[%clk 0:02:05]}  Rxe5 {[%clk 0:01:14]} 24. Rg3 {[%clk 0:01:45]}  Rxe4 {[%clk 0:00:54]} 25. Qxh6 {[%clk 0:01:45]}  Kf8 {[%clk 0:00:55]} 26. Rxg7 {[%clk 0:01:35]}  Qh4 {[%clk 0:00:35]} 27. Rxf7+ {[%clk 0:01:10]}  Kxf7 {[%clk 0:00:34]} 28. Qg6+ {[%clk 0:01:10]}  Kf8 {[%clk 0:00:31]} 29. g3 {[%clk 0:01:11]}  Qe7 {[%clk 0:00:23]} 30. Kg2 {[%clk 0:01:04]}  c5 {[%clk 0:00:21]} 31. Kh3 {[%clk 0:00:54]}  Qg7 {[%clk 0:00:17]} 32. Qd6+ {[%clk 0:00:53]}  Kg8 {[%clk 0:00:18]} 33. d5 {[%clk 0:00:50]}  Rf8 {[%clk 0:00:16]} 0-1


[Site "https://www.chess.com"]

[Event "Titled Tuesday Blitz February 15 Late 2022"]
[White "Domingo Nunez, Alejandro"]
[Black "Li, Hui"]
[WhiteFideId "22245561"]
[BlackFideId "15400310"]
[WhiteElo "2215"]
[BlackElo "1954"]
[Result "1-0"]
[Round "04"]
[TimeControl "180+1"]
[Date "2022.02.16"]
[WhiteClock "0:00:12"]
[BlackClock "0:00:04"]

1. Nf3 {[%clk 0:03:00]}  d5 {[%clk 0:03:00]} 2. b3 {[%clk 0:02:59]}  c5 {[%clk 0:02:57]} 3. e3 {[%clk 0:02:58]}  a6 {[%clk 0:02:57]} 4. Bb2 {[%clk 0:02:59]}  Nc6 {[%clk 0:02:56]} 5. Be2 {[%clk 0:02:59]}  Nf6 {[%clk 0:02:48]} 6. d4 {[%clk 0:02:59]}  cxd4 {[%clk 0:02:44]} 7. exd4 {[%clk 0:02:57]}  Bg4 {[%clk 0:02:35]} 8. O-O {[%clk 0:02:57]}  e6 {[%clk 0:02:35]} 9. h3 {[%clk 0:02:56]}  Bxf3 {[%clk 0:02:28]} 10. Bxf3 {[%clk 0:02:57]}  Be7 {[%clk 0:02:27]} 11. Qe2 {[%clk 0:02:53]}  O-O {[%clk 0:02:27]} 12. Rd1 {[%clk 0:02:53]}  Rc8 {[%clk 0:02:24]} 13. c4 {[%clk 0:02:49]}  Re8 {[%clk 0:02:15]} 14. Nd2 {[%clk 0:02:17]}  dxc4 {[%clk 0:02:08]} 15. Nxc4 {[%clk 0:02:18]}  Nd5 {[%clk 0:02:02]} 16. Rac1 {[%clk 0:02:18]}  Bf6 {[%clk 0:01:55]} 17. Qe4 {[%clk 0:02:15]}  g6 {[%clk 0:01:32]} 18. Ba3 {[%clk 0:02:04]}  Be7 {[%clk 0:01:27]} 19. Bb2 {[%clk 0:02:03]}  Bf6 {[%clk 0:01:27]} 20. Ne5 {[%clk 0:01:59]}  Nxe5 {[%clk 0:01:13]} 21. dxe5 {[%clk 0:02:00]}  Bg7 {[%clk 0:01:10]} 22. Qd4 {[%clk 0:01:55]}  Qd7 {[%clk 0:00:52]} 23. Rxc8 {[%clk 0:01:42]}  Rxc8 {[%clk 0:00:51]} 24. Bxd5 {[%clk 0:01:42]}  exd5 {[%clk 0:00:52]} 25. Qxd5 {[%clk 0:01:42]}  Qxd5 {[%clk 0:00:50]} 26. Rxd5 {[%clk 0:01:43]}  h5 {[%clk 0:00:46]} 27. Rd2 {[%clk 0:01:12]}  Bh6 {[%clk 0:00:32]} 28. Rd7 {[%clk 0:00:46]}  Rc2 {[%clk 0:00:30]} 29. Rd8+ {[%clk 0:00:46]}  Kh7 {[%clk 0:00:30]} 30. e6 {[%clk 0:00:44]}  Rxb2 {[%clk 0:00:04]} 31. e7 {[%clk 0:00:44]}  Bf4 {[%clk 0:00:04]} 32. g3 {[%clk 0:00:43]}  Bg5 {[%clk 0:00:04]} 33. e8=Q {[%clk 0:00:42]}  Bxd8 {[%clk 0:00:04]} 34. Qxd8 {[%clk 0:00:42]}  Rxa2 {[%clk 0:00:04]} 35. Qd7 {[%clk 0:00:40]}  Kg8 {[%clk 0:00:03]} 36. Qxb7 {[%clk 0:00:40]}  Ra1+ {[%clk 0:00:03]} 37. Kg2 {[%clk 0:00:39]}  Ra5 {[%clk 0:00:03]} 38. Qb6 {[%clk 0:00:38]}  Ra2 {[%clk 0:00:03]} 39. g4 {[%clk 0:00:37]}  hxg4 {[%clk 0:00:03]} 40. hxg4 {[%clk 0:00:38]}  a5 {[%clk 0:00:03]} 41. Kg3 {[%clk 0:00:36]}  a4 {[%clk 0:00:03]} 42. bxa4 {[%clk 0:00:33]}  Rxa4 {[%clk 0:00:04]} 43. Qd8+ {[%clk 0:00:30]}  Kh7 {[%clk 0:00:04]} 44. Qd7 {[%clk 0:00:29]}  Ra3+ {[%clk 0:00:04]} 45. Kh4 {[%clk 0:00:30]}  Kg8 {[%clk 0:00:04]} 46. Qe8+ {[%clk 0:00:30]}  Kg7 {[%clk 0:00:04]} 47. Qe5+ {[%clk 0:00:30]}  Kh7 {[%clk 0:00:04]} 48. Qe7 {[%clk 0:00:29]}  Rf3 {[%clk 0:00:04]} 49. Qe2 {[%clk 0:00:25]}  Rf6 {[%clk 0:00:04]} 50. Kg5 {[%clk 0:00:20]}  Re6 {[%clk 0:00:04]} 51. Qxe6 {[%clk 0:00:18]}  fxe6 {[%clk 0:00:04]} 52. Kf6 {[%clk 0:00:18]}  Kh6 {[%clk 0:00:04]} 53. Kxe6 {[%clk 0:00:09]}  Kg5 {[%clk 0:00:04]} 54. f3 {[%clk 0:00:10]}  Kf4 {[%clk 0:00:04]} 55. Kf6 {[%clk 0:00:11]}  Kxf3 {[%clk 0:00:05]} 56. g5 {[%clk 0:00:11]}  Kf4 {[%clk 0:00:04]} 57. Kxg6 {[%clk 0:00:12]} 1-0


[Site "https://www.chess.com"]